[Event "*** Titled Tuesday Blitz"]
[Site "Chess.com"]
[Date "2020.05.12"]
[Round "1"]
[White "SpasKozhuharov"]
[Black "garicradomir"]
[Result "1/2-1/2"]
[WhiteElo "2646"]
[BlackElo "2347"]
[TimeControl "180+1"]
[EndTime "10:06:33 PDT"]
[Termination "Game drawn by repetition"]

1. c4 {[%clk 0:03:00.5]} 1... Nf6 {[%clk 0:02:59.4]} 2. Nc3 {[%clk 0:03:00.1]}
2... g6 {[%clk 0:02:59.6]} 3. e4 {[%clk 0:02:59.3]} 3... d6 {[%clk 0:02:56.1]}
4. d4 {[%clk 0:02:58.9]} 4... Bg7 {[%clk 0:02:54.9]} 5. f3 {[%clk 0:02:59.4]}
5... O-O {[%clk 0:02:51.4]} 6. Be3 {[%clk 0:02:59.8]} 6... Na6 {[%clk
0:02:44.3]} 7. Bd3 {[%clk 0:02:53.3]} 7... c5 {[%clk 0:02:44]} 8. Nge2 {[%clk
0:02:52.6]} 8... e5 {[%clk 0:02:38.6]} 9. d5 {[%clk 0:02:39.3]} 9... Nc7 {[%clk
0:02:38.7]} 10. Qd2 {[%clk 0:02:38.7]} 10... b5 {[%clk 0:02:38.2]} 11. cxb5
{[%clk 0:02:38]} 11... a6 {[%clk 0:02:38.4]} 12. a4 {[%clk 0:02:31.2]} 12...
axb5 {[%clk 0:02:36.1]} 13. Nxb5 {[%clk 0:02:30.6]} 13... Nxb5 {[%clk
0:02:30.4]} 14. Bxb5 {[%clk 0:02:29.6]} 14... Nh5 {[%clk 0:02:30.4]} 15. O-O
{[%clk 0:02:27.5]} 15... f5 {[%clk 0:02:30.3]} 16. b4 {[%clk 0:02:22.3]} 16...
cxb4 {[%clk 0:02:21.4]} 17. Qxb4 {[%clk 0:02:18.9]} 17... fxe4 {[%clk
0:02:16.9]} 18. fxe4 {[%clk 0:02:15.6]} 18... Bg4 {[%clk 0:02:16.5]} 19. Rxf8+
{[%clk 0:02:13]} 19... Bxf8 {[%clk 0:02:12.3]} 20. a5 {[%clk 0:02:07.3]} 20...
Rb8 {[%clk 0:02:09]} 21. Nc3 {[%clk 0:02:03.1]} 21... Nf4 {[%clk 0:01:45]} 22.
a6 {[%clk 0:02:00.3]} 22... Nxg2 {[%clk 0:01:33.3]} 23. Kxg2 {[%clk 0:01:54]}
23... Qh4 {[%clk 0:01:33.2]} 24. Kg1 {[%clk 0:01:08.4]} 24... Qh3 {[%clk
0:01:22.5]} 25. Bf2 {[%clk 0:00:54.3]} 25... Bf3 {[%clk 0:01:21.5]} 26. Bf1
{[%clk 0:00:49.7]} 26... Qg4+ {[%clk 0:01:20.4]} 27. Bg3 {[%clk 0:00:50.1]}
27... Rxb4 {[%clk 0:01:16.1]} 28. a7 {[%clk 0:00:51]} 28... Qg5 {[%clk
0:00:46.6]} 29. a8=Q {[%clk 0:00:36.6]} 29... Qe3+ {[%clk 0:00:46]} 30. Bf2
{[%clk 0:00:36.3]} 30... Qg5+ {[%clk 0:00:44.5]} 31. Bg3 {[%clk 0:00:35.6]}
31... Qe3+ {[%clk 0:00:40]} 32. Bf2 {[%clk 0:00:35.8]} 32... Qg5+ {[%clk
0:00:18.2]} 33. Bg3 {[%clk 0:00:35]} 1/2-1/2

[Event "*** Titled Tuesday Blitz"]
[Site "Chess.com"]
[Date "2020.05.12"]
[Round "1"]
[White "PolinaKarelina"]
[Black "gross-aleks"]
[Result "0-1"]
[WhiteElo "1800"]
[BlackElo "2470"]
[TimeControl "180+1"]
[EndTime "10:06:33 PDT"]
[Termination "gross-aleks won on time"]

1. e4 {[%clk 0:03:00.9]} 1... c6 {[%clk 0:02:53.1]} 2. d3 {[%clk 0:03:00.5]}
2... d5 {[%clk 0:02:52.4]} 3. Nd2 {[%clk 0:03:00.8]} 3... Nd7 {[%clk 0:02:49]}
4. g3 {[%clk 0:03:00.7]} 4... dxe4 {[%clk 0:02:48.3]} 5. dxe4 {[%clk 0:03:00.2]}
5... e5 {[%clk 0:02:48.2]} 6. Bg2 {[%clk 0:03:00.1]} 6... Bc5 {[%clk 0:02:48]}
7. Ne2 {[%clk 0:02:54.7]} 7... Ngf6 {[%clk 0:02:45.8]} 8. O-O {[%clk 0:02:54.7]}
8... O-O {[%clk 0:02:42.6]} 9. Nc3 {[%clk 0:02:48.4]} 9... b5 {[%clk 0:02:38.3]}
10. a3 {[%clk 0:02:47.7]} 10... a5 {[%clk 0:02:30.2]} 11. Nb3 {[%clk 0:02:30.5]}
11... Bb6 {[%clk 0:02:29.7]} 12. Bg5 {[%clk 0:02:27.6]} 12... a4 {[%clk
0:02:26.4]} 13. Nd2 {[%clk 0:02:22.7]} 13... h6 {[%clk 0:02:25.7]} 14. Bxf6
{[%clk 0:02:14.8]} 14... Qxf6 {[%clk 0:02:26.6]} 15. Nf3 {[%clk 0:02:14.5]}
15... Nc5 {[%clk 0:02:23.3]} 16. Qe2 {[%clk 0:02:12.2]} 16... Be6 {[%clk
0:02:20.6]} 17. Rfd1 {[%clk 0:02:10.6]} 17... Bc4 {[%clk 0:02:17.8]} 18. Qe1
{[%clk 0:02:07.8]} 18... Rad8 {[%clk 0:01:45.7]} 19. Rxd8 {[%clk 0:01:57.9]}
19... Rxd8 {[%clk 0:01:45]} 20. Rd1 {[%clk 0:01:58.3]} 20... Rxd1 {[%clk
0:01:33.1]} 21. Qxd1 {[%clk 0:01:53.5]} 21... g5 {[%clk 0:01:32.4]} 22. Qe1
{[%clk 0:01:49.6]} 22... Ne6 {[%clk 0:01:29.3]} 23. Nd1 {[%clk 0:01:44]} 23...
Nd4 {[%clk 0:01:17.8]} 24. Nxd4 {[%clk 0:01:39.2]} 24... exd4 {[%clk 0:01:18.7]}
25. e5 {[%clk 0:01:33]} 25... Qe6 {[%clk 0:01:16.9]} 26. Qe4 {[%clk 0:01:30]}
26... Bd5 {[%clk 0:01:16]} 27. Qe2 {[%clk 0:01:22.8]} 27... Kg7 {[%clk
0:01:12.4]} 28. Kh1 {[%clk 0:01:12.7]} 28... Bxg2+ {[%clk 0:01:11.1]} 29. Kxg2
{[%clk 0:01:12.4]} 29... Qd5+ {[%clk 0:01:06.6]} 30. Qf3 {[%clk 0:01:08.7]}
30... Kg6 {[%clk 0:01:01.6]} 31. Qxd5 {[%clk 0:01:06.5]} 31... cxd5 {[%clk
0:01:02.5]} 32. f4 {[%clk 0:01:04.4]} 32... Kf5 {[%clk 0:01:01]} 33. Kf3 {[%clk
0:01:03.5]} 33... h5 {[%clk 0:00:55]} 0-1

[Event "*** Titled Tuesday Blitz"]
[Site "Chess.com"]
[Date "2020.05.12"]
[Round "1"]
[White "googlegoom"]
[Black "DonBroca"]
[Result "1-0"]
[WhiteElo "2565"]
[BlackElo "2232"]
[TimeControl "180+1"]
[EndTime "10:06:35 PDT"]
[Termination "googlegoom won by checkmate"]

1. Nf3 {[%clk 0:03:00.9]} 1... c5 {[%clk 0:02:59.4]} 2. b3 {[%clk 0:03:00.9]}
2... g6 {[%clk 0:02:58.7]} 3. Bb2 {[%clk 0:03:01]} 3... Nf6 {[%clk 0:02:59.2]}
4. e3 {[%clk 0:02:59.3]} 4... Bg7 {[%clk 0:02:59.4]} 5. Be2 {[%clk 0:02:59.4]}
5... O-O {[%clk 0:02:59.8]} 6. O-O {[%clk 0:02:59.5]} 6... b6 {[%clk 0:03:00.1]}
7. d4 {[%clk 0:02:59.7]} 7... Bb7 {[%clk 0:03:00.4]} 8. Nbd2 {[%clk 0:02:59.6]}
8... d5 {[%clk 0:02:55.4]} 9. c4 {[%clk 0:02:59.2]} 9... Nbd7 {[%clk 0:02:52.6]}
10. Rc1 {[%clk 0:02:59]} 10... Rc8 {[%clk 0:02:51.2]} 11. Rc2 {[%clk 0:02:58.9]}
11... dxc4 {[%clk 0:02:42]} 12. Nxc4 {[%clk 0:02:58.3]} 12... cxd4 {[%clk
0:02:41.3]} 13. Nxd4 {[%clk 0:02:57.8]} 13... Nc5 {[%clk 0:02:37.6]} 14. Qa1
{[%clk 0:02:56.6]} 14... Qc7 {[%clk 0:02:29.6]} 15. b4 {[%clk 0:02:26.3]} 15...
Na4 {[%clk 0:02:22.1]} 16. Na5 {[%clk 0:02:07.3]} 16... Qb8 {[%clk 0:02:05.4]}
17. Ndc6 {[%clk 0:01:44.8]} 17... Bxc6 {[%clk 0:02:00.4]} 18. Nxc6 {[%clk
0:01:41.9]} 18... Qc7 {[%clk 0:01:52.6]} 19. Be5 {[%clk 0:01:39.1]} 19... Qb7
{[%clk 0:01:11.7]} 20. Bb5 {[%clk 0:01:30.3]} 20... a6 {[%clk 0:01:10.6]} 21.
Bxa4 {[%clk 0:01:26.6]} 21... b5 {[%clk 0:01:10.9]} 22. Na5 {[%clk 0:01:24.1]}
22... Qe4 {[%clk 0:01:05.3]} 23. Rfc1 {[%clk 0:01:10.3]} 23... Rcd8 {[%clk
0:00:54.6]} 24. Bb3 {[%clk 0:01:02.4]} 24... Rd3 {[%clk 0:00:50.2]} 25. Nc6
{[%clk 0:00:52.1]} 25... Qh4 {[%clk 0:00:09.6]} 26. g3 {[%clk 0:00:39.9]} 26...
Qg5 {[%clk 0:00:06.7]} 27. h4 {[%clk 0:00:39]} 27... Qg4 {[%clk 0:00:04.2]} 28.
Nxe7+ {[%clk 0:00:38.3]} 28... Kh8 {[%clk 0:00:03.9]} 29. Bxf6 {[%clk
0:00:38.3]} 29... Rxe3 {[%clk 0:00:01.7]} 30. Bxg7# {[%clk 0:00:37.7]} 1-0

[Event "*** Titled Tuesday Blitz"]
[Site "Chess.com"]
[Date "2020.05.12"]
[Round "1"]
[White "WhiteCapital80"]
[Black "Alexander_Zubov"]
[Result "1-0"]
[WhiteElo "2453"]
[BlackElo "2834"]
[TimeControl "180+1"]
[EndTime "10:06:36 PDT"]
[Termination "WhiteCapital80 won by resignation"]

1. e4 {[%clk 0:02:57.4]} 1... c5 {[%clk 0:02:59.3]} 2. Nf3 {[%clk 0:02:55.1]}
2... d6 {[%clk 0:02:59.3]} 3. d4 {[%clk 0:02:55.6]} 3... cxd4 {[%clk 0:02:59.3]}
4. Nxd4 {[%clk 0:02:56.2]} 4... Nf6 {[%clk 0:02:58.8]} 5. Nc3 {[%clk 0:02:56.9]}
5... a6 {[%clk 0:02:58.7]} 6. Be2 {[%clk 0:02:56.4]} 6... e5 {[%clk 0:02:56.9]}
7. Nb3 {[%clk 0:02:56.5]} 7... Be7 {[%clk 0:02:56]} 8. O-O {[%clk 0:02:56.6]}
8... O-O {[%clk 0:02:53.7]} 9. Kh1 {[%clk 0:02:56.7]} 9... Be6 {[%clk
0:02:50.8]} 10. f4 {[%clk 0:02:55.8]} 10... exf4 {[%clk 0:02:50.6]} 11. Bxf4
{[%clk 0:02:55.3]} 11... Nc6 {[%clk 0:02:50.7]} 12. Qe1 {[%clk 0:02:55]} 12...
Ne5 {[%clk 0:02:46.1]} 13. Nd4 {[%clk 0:02:52.9]} 13... g6 {[%clk 0:02:40.8]}
14. Rd1 {[%clk 0:02:48.6]} 14... Qc7 {[%clk 0:02:39.4]} 15. Bg5 {[%clk
0:02:40.7]} 15... Ne8 {[%clk 0:02:38.4]} 16. Bh6 {[%clk 0:02:33.8]} 16... Ng7
{[%clk 0:02:28.1]} 17. Qg3 {[%clk 0:02:33.6]} 17... Qd8 {[%clk 0:02:07.7]} 18.
Nf5 {[%clk 0:02:20.6]} 18... Bxf5 {[%clk 0:01:59.5]} 19. exf5 {[%clk 0:02:20.5]}
19... Bh4 {[%clk 0:01:59.2]} 20. Qh3 {[%clk 0:02:20]} 20... Be7 {[%clk
0:01:06.1]} 21. Nd5 {[%clk 0:01:35.3]} 21... f6 {[%clk 0:00:59.5]} 22. fxg6
{[%clk 0:01:33.6]} 22... hxg6 {[%clk 0:00:54.9]} 23. Bd3 {[%clk 0:01:22.2]}
23... f5 {[%clk 0:00:52]} 24. Nf4 {[%clk 0:01:18.3]} 24... Qd7 {[%clk
0:00:47.5]} 25. c3 {[%clk 0:01:15]} 25... Rf7 {[%clk 0:00:44.6]} 26. Bc2 {[%clk
0:01:14.6]} 26... g5 {[%clk 0:00:41.9]} 27. Nd5 {[%clk 0:01:11.5]} 27... Bd8
{[%clk 0:00:40.6]} 28. Bb3 {[%clk 0:01:10.9]} 28... b5 {[%clk 0:00:37.3]} 29.
Ne3 {[%clk 0:01:08.9]} 29... g4 {[%clk 0:00:36.3]} 30. Qg3 {[%clk 0:01:04]}
30... Nh5 {[%clk 0:00:34.9]} 31. Qf2 {[%clk 0:01:03.6]} 31... f4 {[%clk
0:00:29.8]} 32. Bxf4 {[%clk 0:01:02.5]} 32... Nc4 {[%clk 0:00:28.4]} 33. Nxc4
{[%clk 0:01:01.5]} 33... Rxf4 {[%clk 0:00:28.2]} 34. Ne5+ {[%clk 0:01:01.3]}
34... Kg7 {[%clk 0:00:27.2]} 35. Nxd7 {[%clk 0:01:01]} 35... Rxf2 {[%clk
0:00:27]} 36. Rxf2 {[%clk 0:01:01.4]} 36... g3 {[%clk 0:00:26.9]} 37. hxg3
{[%clk 0:01:00.5]} 37... Nxg3+ {[%clk 0:00:26.3]} 38. Kh2 {[%clk 0:01:01]} 38...
Ne4 {[%clk 0:00:27]} 39. Rf4 {[%clk 0:00:59.8]} 39... Ng5 {[%clk 0:00:26.6]} 40.
Nb6 {[%clk 0:00:56.5]} 40... Bxb6 {[%clk 0:00:25.6]} 41. Rxd6 {[%clk 0:00:55.6]}
41... Bc7 {[%clk 0:00:25.4]} 42. Rd7+ {[%clk 0:00:55.8]} 1-0

[Event "*** Titled Tuesday Blitz"]
[Site "Chess.com"]
[Date "2020.05.12"]
[Round "1"]
[White "Azerichess"]
[Black "chessablanca"]
[Result "1-0"]
[WhiteElo "3041"]
[BlackElo "2463"]
[TimeControl "180+1"]
[EndTime "10:06:37 PDT"]
[Termination "Azerichess won by checkmate"]

1. d4 {[%clk 0:03:00.9]} 1... Nf6 {[%clk 0:02:59.8]} 2. c4 {[%clk 0:03:00.5]}
2... e6 {[%clk 0:03:00]} 3. Nc3 {[%clk 0:03:00.7]} 3... Bb4 {[%clk 0:03:00.4]}
4. Qc2 {[%clk 0:03:00.8]} 4... O-O {[%clk 0:03:00.5]} 5. e4 {[%clk 0:03:00.9]}
5... d6 {[%clk 0:03:00.5]} 6. e5 {[%clk 0:03:00]} 6... dxe5 {[%clk 0:02:48.3]}
7. dxe5 {[%clk 0:03:00.9]} 7... Nfd7 {[%clk 0:02:46]} 8. Nf3 {[%clk 0:03:00.9]}
8... Nc6 {[%clk 0:02:41.9]} 9. a3 {[%clk 0:02:41.9]} 9... Be7 {[%clk 0:02:28]}
10. Bf4 {[%clk 0:02:40.7]} 10... g5 {[%clk 0:02:15.6]} 11. Bg3 {[%clk
0:02:27.2]} 11... g4 {[%clk 0:02:15.2]} 12. Nd2 {[%clk 0:02:14.4]} 12... Ndxe5
{[%clk 0:02:03.7]} 13. O-O-O {[%clk 0:02:14.3]} 13... Qe8 {[%clk 0:01:42.5]} 14.
Nb5 {[%clk 0:02:13.4]} 14... Bd8 {[%clk 0:01:29.3]} 15. h3 {[%clk 0:02:11.2]}
15... a6 {[%clk 0:01:16.2]} 16. Nc3 {[%clk 0:01:54.3]} 16... f5 {[%clk
0:01:09.9]} 17. hxg4 {[%clk 0:01:52.8]} 17... Nxg4 {[%clk 0:01:08.3]} 18. Re1
{[%clk 0:01:45.9]} 18... Bg5 {[%clk 0:01:03.6]} 19. Kb1 {[%clk 0:01:43.2]} 19...
Qf7 {[%clk 0:00:41.4]} 20. Nf3 {[%clk 0:01:31.5]} 20... Bf6 {[%clk 0:00:37.7]}
21. Bd3 {[%clk 0:01:28.1]} 21... Qg7 {[%clk 0:00:32.8]} 22. Ne2 {[%clk
0:01:22.8]} 22... Bd7 {[%clk 0:00:27.6]} 23. Nf4 {[%clk 0:01:22.2]} 23... Qf7
{[%clk 0:00:26.3]} 24. Nh5 {[%clk 0:01:20.7]} 24... Rae8 {[%clk 0:00:23.1]} 25.
Nxf6+ {[%clk 0:01:19.8]} 25... Qxf6 {[%clk 0:00:23.2]} 26. Rh5 {[%clk
0:01:18.8]} 26... Nd4 {[%clk 0:00:19.1]} 27. Nxd4 {[%clk 0:01:14]} 27... Qxd4
{[%clk 0:00:20]} 28. f3 {[%clk 0:01:07]} 28... Nf6 {[%clk 0:00:17.7]} 29. Be5
{[%clk 0:01:04.3]} 29... Qc5 {[%clk 0:00:14]} 30. Rg5+ {[%clk 0:01:04]} 30...
Kh8 {[%clk 0:00:13.6]} 31. g4 {[%clk 0:01:02.7]} 31... fxg4 {[%clk 0:00:10.9]}
32. Qh2 {[%clk 0:01:01.7]} 32... Qe7 {[%clk 0:00:09.1]} 33. Bxh7 {[%clk
0:01:00.4]} 33... g3 {[%clk 0:00:03.1]} 34. Qh3 {[%clk 0:00:58.8]} 34... Qxh7+
{[%clk 0:00:01.6]} 35. Qxh7+ {[%clk 0:00:58.2]} 35... Kxh7 {[%clk 0:00:01.9]}
36. Rh1+ {[%clk 0:00:58.8]} 36... Nh5 {[%clk 0:00:02.8]} 37. Rhxh5# {[%clk
0:00:58.7]} 1-0

[Event "*** Titled Tuesday Blitz"]
[Site "Chess.com"]
[Date "2020.05.12"]
[Round "1"]
[White "Jenia84"]
[Black "AleksanderHnydiuk"]
[Result "0-1"]
[WhiteElo "2263"]
[BlackElo "2584"]
[TimeControl "180+1"]
[EndTime "10:06:37 PDT"]
[Termination "AleksanderHnydiuk won by resignation"]

1. Nf3 {[%clk 0:03:00.7]} 1... Nf6 {[%clk 0:02:57.8]} 2. d4 {[%clk 0:02:58.5]}
2... d5 {[%clk 0:02:57.1]} 3. c4 {[%clk 0:02:56.9]} 3... e6 {[%clk 0:02:57.2]}
4. Nc3 {[%clk 0:02:56.2]} 4... c5 {[%clk 0:02:57.3]} 5. cxd5 {[%clk 0:02:55]}
5... Nxd5 {[%clk 0:02:58.2]} 6. e4 {[%clk 0:02:54.5]} 6... Nxc3 {[%clk
0:02:58.3]} 7. bxc3 {[%clk 0:02:54.2]} 7... cxd4 {[%clk 0:02:59.2]} 8. cxd4
{[%clk 0:02:54.5]} 8... Bb4+ {[%clk 0:02:59.8]} 9. Bd2 {[%clk 0:02:53.9]} 9...
Bxd2+ {[%clk 0:03:00.4]} 10. Qxd2 {[%clk 0:02:54.4]} 10... O-O {[%clk
0:03:01.2]} 11. Bd3 {[%clk 0:02:50.9]} 11... Nc6 {[%clk 0:02:58.6]} 12. d5
{[%clk 0:02:45.3]} 12... exd5 {[%clk 0:02:55.7]} 13. exd5 {[%clk 0:02:45.2]}
13... Re8+ {[%clk 0:02:56]} 14. Be2 {[%clk 0:02:43.6]} 14... Ne5 {[%clk
0:02:30.5]} 15. O-O {[%clk 0:02:40.1]} 15... Nxf3+ {[%clk 0:02:27.6]} 16. Bxf3
{[%clk 0:02:36.7]} 16... Qd6 {[%clk 0:02:28]} 17. Rab1 {[%clk 0:02:33]} 17... b6
{[%clk 0:02:24.2]} 18. h3 {[%clk 0:02:27.9]} 18... Bf5 {[%clk 0:02:10.3]} 19.
Rbc1 {[%clk 0:02:25.3]} 19... Rad8 {[%clk 0:01:46.5]} 20. Qg5 {[%clk 0:02:12.2]}
20... Bd7 {[%clk 0:01:07.6]} 21. Rfe1 {[%clk 0:02:05.9]} 21... h6 {[%clk
0:01:03.9]} 22. Rxe8+ {[%clk 0:02:04.9]} 22... Rxe8 {[%clk 0:01:03.2]} 23. Qh4
{[%clk 0:01:55.5]} 23... a5 {[%clk 0:00:26.3]} 24. Qd4 {[%clk 0:01:49.7]} 24...
b5 {[%clk 0:00:22.9]} 25. g3 {[%clk 0:01:47.3]} 25... b4 {[%clk 0:00:22.6]} 26.
Qc5 {[%clk 0:01:39.8]} 26... Qxc5 {[%clk 0:00:16.4]} 27. Rxc5 {[%clk 0:01:38.7]}
27... a4 {[%clk 0:00:12.3]} 28. Kg2 {[%clk 0:01:36.1]} 28... b3 {[%clk 0:00:11]}
29. axb3 {[%clk 0:01:34.2]} 29... axb3 {[%clk 0:00:11.9]} 30. Rc7 {[%clk
0:01:24.4]} 30... Bf5 {[%clk 0:00:07.6]} 31. Rb7 {[%clk 0:01:22]} 31... Bc2
{[%clk 0:00:07.2]} 32. d6 {[%clk 0:01:21.1]} 32... Rd8 {[%clk 0:00:07.5]} 33. d7
{[%clk 0:01:07.8]} 33... Kf8 {[%clk 0:00:07.5]} 34. g4 {[%clk 0:00:54.6]} 34...
Ke7 {[%clk 0:00:07.6]} 35. Bc6 {[%clk 0:00:53.5]} 35... Kd6 {[%clk 0:00:07.9]}
36. Ba4 {[%clk 0:00:51.6]} 36... Be4+ {[%clk 0:00:06.9]} 0-1

[Event "*** Titled Tuesday Blitz"]
[Site "Chess.com"]
[Date "2020.05.12"]
[Round "1"]
[White "arminmusovic"]
[Black "KingChess345"]
[Result "1-0"]
[WhiteElo "2552"]
[BlackElo "2210"]
[TimeControl "180+1"]
[EndTime "10:06:38 PDT"]
[Termination "arminmusovic won on time"]

1. a3 {[%clk 0:02:59.1]} 1... d5 {[%clk 0:02:25]} 2. Nc3 {[%clk 0:02:57]} 2...
Nf6 {[%clk 0:02:25.4]} 3. d3 {[%clk 0:02:57.1]} 3... g6 {[%clk 0:02:21.3]} 4.
Bg5 {[%clk 0:02:56.4]} 4... Bg7 {[%clk 0:02:21.2]} 5. e4 {[%clk 0:02:56.9]} 5...
dxe4 {[%clk 0:02:19.7]} 6. dxe4 {[%clk 0:02:57.8]} 6... O-O {[%clk 0:02:16.1]}
7. f4 {[%clk 0:02:50.4]} 7... c5 {[%clk 0:02:00.1]} 8. Qxd8 {[%clk 0:02:48.8]}
8... Rxd8 {[%clk 0:01:59.1]} 9. e5 {[%clk 0:02:49.7]} 9... Nh5 {[%clk
0:01:56.5]} 10. Bxe7 {[%clk 0:02:36]} 10... Re8 {[%clk 0:01:56.8]} 11. Bxc5
{[%clk 0:02:23.3]} 11... Nxf4 {[%clk 0:01:55.6]} 12. O-O-O {[%clk 0:02:21.7]}
12... Nc6 {[%clk 0:01:45.2]} 13. Nb5 {[%clk 0:02:19.1]} 13... Bxe5 {[%clk
0:01:43.3]} 14. Nf3 {[%clk 0:02:15.7]} 14... Bf5 {[%clk 0:01:27.1]} 15. Nxe5
{[%clk 0:02:05.5]} 15... Rxe5 {[%clk 0:01:28]} 16. Bd6 {[%clk 0:02:06]} 16...
Re4 {[%clk 0:01:11.2]} 17. Nc3 {[%clk 0:02:05]} 17... Rae8 {[%clk 0:00:43.9]}
18. Nxe4 {[%clk 0:02:01.7]} 18... Rxe4 {[%clk 0:00:44.8]} 19. Bxf4 {[%clk
0:01:53.1]} 19... Rxf4 {[%clk 0:00:45.7]} 20. g3 {[%clk 0:01:53.4]} 20... Rf2
{[%clk 0:00:45.3]} 21. Bd3 {[%clk 0:01:53.5]} 21... Nd4 {[%clk 0:00:22.3]} 22.
Bxf5 {[%clk 0:01:52.5]} 22... Nxf5 {[%clk 0:00:23.2]} 23. Rd2 {[%clk 0:01:46.9]}
23... Rf3 {[%clk 0:00:23.2]} 24. Re1 {[%clk 0:01:42.1]} 24... h5 {[%clk
0:00:20]} 25. Rd7 {[%clk 0:01:34.3]} 25... Rf2 {[%clk 0:00:16.7]} 26. Rd2 {[%clk
0:01:23.8]} 26... Rf3 {[%clk 0:00:15.9]} 27. b3 {[%clk 0:01:24.2]} 27... Kg7
{[%clk 0:00:14.4]} 28. a4 {[%clk 0:01:24]} 28... Kf6 {[%clk 0:00:13.7]} 29. a5
{[%clk 0:01:24.4]} 29... Kg5 {[%clk 0:00:13.4]} 30. Re4 {[%clk 0:01:21.4]} 30...
Rf1+ {[%clk 0:00:11.5]} 31. Kb2 {[%clk 0:01:21.8]} 31... Rh1 {[%clk 0:00:11.4]}
32. b4 {[%clk 0:01:20.5]} 32... h4 {[%clk 0:00:09.1]} 33. gxh4+ {[%clk
0:01:18.4]} 33... Nxh4 {[%clk 0:00:10]} 34. Rd7 {[%clk 0:01:11.9]} 34... f5
{[%clk 0:00:08.4]} 35. Re2 {[%clk 0:01:07.8]} 35... Kf4 {[%clk 0:00:06.4]} 36.
b5 {[%clk 0:01:03.9]} 36... g5 {[%clk 0:00:05.5]} 37. Rxb7 {[%clk 0:01:03.2]}
37... Kf3 {[%clk 0:00:05.6]} 38. Rd2 {[%clk 0:01:02.7]} 38... g4 {[%clk
0:00:04.1]} 39. b6 {[%clk 0:01:02.3]} 39... axb6 {[%clk 0:00:02.8]} 40. a6
{[%clk 0:01:02.8]} 1-0

[Event "*** Titled Tuesday Blitz"]
[Site "Chess.com"]
[Date "2020.05.12"]
[Round "1"]
[White "rasmussvane"]
[Black "heartofatiger"]
[Result "1-0"]
[WhiteElo "2909"]
[BlackElo "2451"]
[TimeControl "180+1"]
[EndTime "10:06:42 PDT"]
[Termination "rasmussvane won by resignation"]

1. Nf3 {[%clk 0:03:00.9]} 1... Nf6 {[%clk 0:02:59.3]} 2. g3 {[%clk 0:02:59.7]}
2... g6 {[%clk 0:02:59.8]} 3. Bg2 {[%clk 0:03:00.2]} 3... Bg7 {[%clk 0:03:00.5]}
4. O-O {[%clk 0:03:00.8]} 4... O-O {[%clk 0:03:00.9]} 5. d4 {[%clk 0:03:01.4]}
5... d6 {[%clk 0:03:01.4]} 6. Re1 {[%clk 0:03:01.4]} 6... Nbd7 {[%clk
0:03:00.8]} 7. e4 {[%clk 0:03:01.5]} 7... e5 {[%clk 0:03:01.1]} 8. Nc3 {[%clk
0:03:02.1]} 8... Re8 {[%clk 0:03:00.2]} 9. a4 {[%clk 0:03:00.2]} 9... a5 {[%clk
0:02:58.7]} 10. h3 {[%clk 0:02:59.9]} 10... b6 {[%clk 0:02:57.8]} 11. Be3 {[%clk
0:02:41.1]} 11... Bb7 {[%clk 0:02:57.4]} 12. dxe5 {[%clk 0:02:41.5]} 12... dxe5
{[%clk 0:02:56.5]} 13. Nd2 {[%clk 0:02:40.9]} 13... Qe7 {[%clk 0:02:51.5]} 14.
Qe2 {[%clk 0:02:26.6]} 14... Nc5 {[%clk 0:02:47.3]} 15. Rad1 {[%clk 0:02:25.9]}
15... Rad8 {[%clk 0:02:39.9]} 16. Qc4 {[%clk 0:02:05.2]} 16... Bf8 {[%clk
0:02:07.3]} 17. Nd5 {[%clk 0:01:45.2]} 17... Nxd5 {[%clk 0:02:05]} 18. exd5
{[%clk 0:01:46.1]} 18... Qd7 {[%clk 0:01:34]} 19. Bg5 {[%clk 0:01:25.7]} 19...
Rc8 {[%clk 0:01:13.4]} 20. b3 {[%clk 0:01:25.4]} 20... h6 {[%clk 0:01:10.9]} 21.
Be3 {[%clk 0:01:25]} 21... Kh8 {[%clk 0:01:01]} 22. Bxc5 {[%clk 0:01:17.9]}
22... Bxc5 {[%clk 0:00:59.6]} 23. Ne4 {[%clk 0:01:18.1]} 23... Be7 {[%clk
0:00:52.8]} 24. d6 {[%clk 0:01:14.2]} 24... Bd8 {[%clk 0:00:37.8]} 25. dxc7
{[%clk 0:01:07.8]} 25... Qxc7 {[%clk 0:00:29]} 26. Nd6 {[%clk 0:00:33.2]} 26...
Qxc4 {[%clk 0:00:19.7]} 27. bxc4 {[%clk 0:00:34.1]} 27... Bxg2 {[%clk
0:00:18.1]} 28. Kxg2 {[%clk 0:00:35]} 28... Bc7 {[%clk 0:00:17.7]} 29. Nxe8
{[%clk 0:00:34.6]} 29... Rxe8 {[%clk 0:00:16.7]} 30. Rd7 {[%clk 0:00:33.9]}
30... Bb8 {[%clk 0:00:15.4]} 31. Rxf7 {[%clk 0:00:34]} 31... e4 {[%clk 0:00:16]}
32. Rf6 {[%clk 0:00:32.6]} 32... Kg7 {[%clk 0:00:16]} 33. Rxb6 {[%clk
0:00:32.1]} 1-0